[Event "Titled Tuesday Blitz August 02 Early 2022"]
[White "Nitish Belurkar"]
[Black "Vakhlamov, Igor L."]
[WhiteFideId "5084768"]
[BlackFideId "24126748"]
[WhiteElo "2306"]
[BlackElo "2401"]
[Result "1/2-1/2"]
[Round "05"]
[TimeControl "180+1"]
[Date "2022.08.02"]
[WhiteClock "0:01:36"]
[BlackClock "0:00:12"]

1. d4 {[%clk 0:02:55]}  d5 {[%clk 0:02:57]} 2. Nf3 {[%clk 0:02:55]}  Nf6 {[%clk 0:02:57]} 3. e3 {[%clk 0:02:55]}  e6 {[%clk 0:02:57]} 4. Bd3 {[%clk 0:02:46]}  Be7 {[%clk 0:02:56]} 5. Nbd2 {[%clk 0:02:46]}  O-O {[%clk 0:02:56]} 6. O-O {[%clk 0:02:47]}  Nbd7 {[%clk 0:02:50]} 7. Re1 {[%clk 0:02:46]}  b6 {[%clk 0:02:49]} 8. e4 {[%clk 0:02:47]}  dxe4 {[%clk 0:02:50]} 9. Nxe4 {[%clk 0:02:48]}  Bb7 {[%clk 0:02:50]} 10. Qe2 {[%clk 0:02:48]}  c5 {[%clk 0:02:44]} 11. dxc5 {[%clk 0:02:48]}  Nxc5 {[%clk 0:02:45]} 12. Nxc5 {[%clk 0:02:48]}  Bxc5 {[%clk 0:02:45]} 13. Bg5 {[%clk 0:02:48]}  h6 {[%clk 0:02:42]} 14. Bh4 {[%clk 0:02:46]}  Be7 {[%clk 0:02:42]} 15. Rad1 {[%clk 0:02:45]}  Qc7 {[%clk 0:02:41]} 16. Nd4 {[%clk 0:02:45]}  Rfe8 {[%clk 0:02:31]} 17. c3 {[%clk 0:02:43]}  a6 {[%clk 0:02:30]} 18. h3 {[%clk 0:02:42]}  b5 {[%clk 0:02:29]} 19. a3 {[%clk 0:02:40]}  Rad8 {[%clk 0:02:27]} 20. Bb1 {[%clk 0:02:39]}  Qf4 {[%clk 0:01:19]} 21. Bg3 {[%clk 0:02:23]}  Qg5 {[%clk 0:01:18]} 22. Qc2 {[%clk 0:02:23]}  Bd6 {[%clk 0:00:59]} 23. Re3 {[%clk 0:02:10]}  Bf4 {[%clk 0:00:54]} 24. Nf3 {[%clk 0:02:10]}  Bxf3 {[%clk 0:00:48]} 25. Rxf3 {[%clk 0:02:09]}  Bxg3 {[%clk 0:00:43]} 26. Rxg3 {[%clk 0:02:06]}  Qe5 {[%clk 0:00:33]} 27. Re3 {[%clk 0:02:06]}  Qc7 {[%clk 0:00:32]} 28. Rde1 {[%clk 0:02:02]}  Qd6 {[%clk 0:00:25]} 29. Rd3 {[%clk 0:01:59]}  Qxd3 {[%clk 0:00:25]} 30. Qxd3 {[%clk 0:02:00]}  Rxd3 {[%clk 0:00:26]} 31. Bxd3 {[%clk 0:02:01]}  Rd8 {[%clk 0:00:27]} 32. Rd1 {[%clk 0:02:01]}  Kf8 {[%clk 0:00:26]} 33. Kf1 {[%clk 0:02:01]}  Ke7 {[%clk 0:00:26]} 34. Ke2 {[%clk 0:02:00]}  Nd5 {[%clk 0:00:27]} 35. g3 {[%clk 0:01:59]}  g5 {[%clk 0:00:26]} 36. a4 {[%clk 0:02:00]}  bxa4 {[%clk 0:00:26]} 37. Bxa6 {[%clk 0:02:00]}  Rb8 {[%clk 0:00:24]} 38. Rd2 {[%clk 0:02:01]}  a3 {[%clk 0:00:24]} 39. bxa3 {[%clk 0:01:59]}  Nxc3+ {[%clk 0:00:24]} 40. Kf1 {[%clk 0:01:59]}  Rb1+ {[%clk 0:00:23]} 41. Kg2 {[%clk 0:01:59]}  Ra1 {[%clk 0:00:24]} 42. Bc4 {[%clk 0:01:53]}  Rxa3 {[%clk 0:00:23]} 43. Rd3 {[%clk 0:01:53]}  Nb1 {[%clk 0:00:23]} 44. Rd1 {[%clk 0:01:53]}  Nc3 {[%clk 0:00:19]} 45. Rd3 {[%clk 0:01:53]}  Nb1 {[%clk 0:00:19]} 46. Rd1 {[%clk 0:01:53]}  Rc3 {[%clk 0:00:19]} 47. Bxe6 {[%clk 0:01:50]}  Kxe6 {[%clk 0:00:17]} 48. Rxb1 {[%clk 0:01:50]}  Rc6 {[%clk 0:00:15]} 49. Kf3 {[%clk 0:01:47]}  Kf6 {[%clk 0:00:15]} 50. Rb3 {[%clk 0:01:47]}  Kg6 {[%clk 0:00:16]} 51. Re3 {[%clk 0:01:47]}  h5 {[%clk 0:00:16]} 52. Rd3 {[%clk 0:01:47]}  Rf6+ {[%clk 0:00:17]} 53. Kg2 {[%clk 0:01:48]}  Ra6 {[%clk 0:00:17]} 54. Rd8 {[%clk 0:01:48]}  f6 {[%clk 0:00:17]} 55. Rh8 {[%clk 0:01:47]}  Ra4 {[%clk 0:00:16]} 56. Rg8+ {[%clk 0:01:47]}  Kf5 {[%clk 0:00:15]} 57. Rc8 {[%clk 0:01:48]}  h4 {[%clk 0:00:15]} 58. Rc5+ {[%clk 0:01:45]}  Kg6 {[%clk 0:00:15]} 59. Rc3 {[%clk 0:01:45]}  hxg3 {[%clk 0:00:15]} 60. fxg3 {[%clk 0:01:46]}  Ra2+ {[%clk 0:00:15]} 61. Kf3 {[%clk 0:01:45]}  f5 {[%clk 0:00:15]} 62. Rc6+ {[%clk 0:01:44]}  Kf7 {[%clk 0:00:15]} 63. g4 {[%clk 0:01:42]}  Ra3+ {[%clk 0:00:15]} 64. Kg2 {[%clk 0:01:42]}  f4 {[%clk 0:00:11]} 65. Rc5 {[%clk 0:01:40]}  Ra2+ {[%clk 0:00:10]} 66. Kg1 {[%clk 0:01:40]}  Kf6 {[%clk 0:00:10]} 67. Rf5+ {[%clk 0:01:40]}  Kg6 {[%clk 0:00:10]} 68. Rf8 {[%clk 0:01:39]}  Ra5 {[%clk 0:00:09]} 69. Kg2 {[%clk 0:01:39]}  Kg7 {[%clk 0:00:09]} 70. Rc8 {[%clk 0:01:35]}  Kf6 {[%clk 0:00:09]} 71. Rf8+ {[%clk 0:01:35]}  Ke6 {[%clk 0:00:09]} 72. h4 {[%clk 0:01:31]}  Ra2+ {[%clk 0:00:07]} 73. Kh3 {[%clk 0:01:31]}  Ra3+ {[%clk 0:00:07]} 74. Kh2 {[%clk 0:01:32]}  gxh4 {[%clk 0:00:06]} 75. Rxf4 {[%clk 0:01:31]}  Rg3 {[%clk 0:00:07]} 76. g5 {[%clk 0:01:29]}  Rxg5 {[%clk 0:00:08]} 77. Rxh4 {[%clk 0:01:29]}  Kf5 {[%clk 0:00:09]} 78. Kh3 {[%clk 0:01:30]}  Rg7 {[%clk 0:00:08]} 79. Rh5+ {[%clk 0:01:30]}  Kf4 {[%clk 0:00:08]} 80. Ra5 {[%clk 0:01:29]}  Kf3 {[%clk 0:00:08]} 81. Ra3+ {[%clk 0:01:29]}  Kf2 {[%clk 0:00:08]} 82. Kh4 {[%clk 0:01:29]}  Rb7 {[%clk 0:00:08]} 83. Kg4 {[%clk 0:01:30]}  Rb4+ {[%clk 0:00:08]} 84. Kf5 {[%clk 0:01:30]}  Rb5+ {[%clk 0:00:08]} 85. Ke4 {[%clk 0:01:30]}  Rb4+ {[%clk 0:00:09]} 86. Ke5 {[%clk 0:01:31]}  Rb5+ {[%clk 0:00:09]} 87. Kd4 {[%clk 0:01:32]}  Rb4+ {[%clk 0:00:09]} 88. Kd5 {[%clk 0:01:31]}  Rb5+ {[%clk 0:00:10]} 89. Kc4 {[%clk 0:01:32]}  Rf5 {[%clk 0:00:10]} 90. Ra2+ {[%clk 0:01:33]}  Kg3 {[%clk 0:00:10]} 91. Kd4 {[%clk 0:01:33]}  Rf4+ {[%clk 0:00:10]} 92. Ke3 {[%clk 0:01:33]}  Rf3+ {[%clk 0:00:11]} 93. Ke4 {[%clk 0:01:34]}  Rf4+ {[%clk 0:00:11]} 94. Ke3 {[%clk 0:01:35]}  Rf3+ {[%clk 0:00:12]} 95. Ke4 {[%clk 0:01:35]}  Rf4+ {[%clk 0:00:12]} 96. Ke3 {[%clk 0:01:36]} 1/2-1/2


[Site "https://www.chess.com"]

[Event "Titled Tuesday Blitz August 02 Early 2022"]
[White "Ponce Cano, Adrian"]
[Black "Bryakin, Mikhail"]
[WhiteFideId "22296913"]
[BlackFideId "4165314"]
[WhiteElo "2261"]
[BlackElo "2422"]
[Result "1/2-1/2"]
[Round "05"]
[TimeControl "180+1"]
[Date "2022.08.02"]
[WhiteClock "0:00:23"]
[BlackClock "0:00:03"]

1. e4 {[%clk 0:02:57]}  d5 {[%clk 0:02:56]} 2. exd5 {[%clk 0:02:56]}  Qxd5 {[%clk 0:02:57]} 3. Nc3 {[%clk 0:02:56]}  Qe5+ {[%clk 0:02:57]} 4. Be2 {[%clk 0:02:53]}  Bg4 {[%clk 0:02:57]} 5. d4 {[%clk 0:02:53]}  Bxe2 {[%clk 0:02:57]} 6. Ngxe2 {[%clk 0:02:54]}  Qa5 {[%clk 0:02:57]} 7. Bd2 {[%clk 0:02:53]}  c6 {[%clk 0:02:56]} 8. Ng3 {[%clk 0:02:51]}  Nf6 {[%clk 0:02:53]} 9. Qe2 {[%clk 0:02:50]}  Qa6 {[%clk 0:02:48]} 10. Qf3 {[%clk 0:02:44]}  e6 {[%clk 0:02:46]} 11. O-O-O {[%clk 0:02:42]}  Nbd7 {[%clk 0:02:42]} 12. Rhe1 {[%clk 0:02:41]}  O-O-O {[%clk 0:02:39]} 13. Kb1 {[%clk 0:02:42]}  Bb4 {[%clk 0:02:30]} 14. Nce4 {[%clk 0:02:40]}  Bxd2 {[%clk 0:02:22]} 15. Rxd2 {[%clk 0:02:40]}  Rhf8 {[%clk 0:01:51]} 16. c4 {[%clk 0:02:16]}  Qa5 {[%clk 0:01:46]} 17. Red1 {[%clk 0:02:12]}  Kb8 {[%clk 0:01:42]} 18. Rd3 {[%clk 0:02:03]}  Qc7 {[%clk 0:01:33]} 19. Rb3 {[%clk 0:01:50]}  h6 {[%clk 0:01:30]} 20. h4 {[%clk 0:01:48]}  Ka8 {[%clk 0:01:28]} 21. Ra3 {[%clk 0:01:42]}  Nxe4 {[%clk 0:01:27]} 22. Nxe4 {[%clk 0:01:43]}  f5 {[%clk 0:01:26]} 23. Nc3 {[%clk 0:01:29]}  e5 {[%clk 0:01:14]} 24. d5 {[%clk 0:01:22]}  e4 {[%clk 0:01:14]} 25. Qe3 {[%clk 0:01:22]}  Qb6 {[%clk 0:01:15]} 26. dxc6 {[%clk 0:01:06]}  Qxe3 {[%clk 0:01:08]} 27. cxb7+ {[%clk 0:01:05]}  Kxb7 {[%clk 0:01:07]} 28. fxe3 {[%clk 0:01:06]}  Ne5 {[%clk 0:01:06]} 29. Rb3+ {[%clk 0:01:03]}  Kc6 {[%clk 0:01:06]} 30. Nd5 {[%clk 0:00:43]}  Nxc4 {[%clk 0:01:06]} 31. Ne7+ {[%clk 0:00:36]}  Kc5 {[%clk 0:01:06]} 32. Rc1 {[%clk 0:00:35]}  Kd6 {[%clk 0:00:35]} 33. Nxf5+ {[%clk 0:00:34]}  Rxf5 {[%clk 0:00:36]} 34. Rxc4 {[%clk 0:00:35]}  Rf1+ {[%clk 0:00:36]} 35. Rc1 {[%clk 0:00:35]}  Rxc1+ {[%clk 0:00:33]} 36. Kxc1 {[%clk 0:00:36]}  Rf8 {[%clk 0:00:33]} 37. Rb7 {[%clk 0:00:34]}  Rf1+ {[%clk 0:00:26]} 38. Kc2 {[%clk 0:00:34]}  Rf2+ {[%clk 0:00:27]} 39. Kc3 {[%clk 0:00:35]}  Rxg2 {[%clk 0:00:27]} 40. Rxa7 {[%clk 0:00:36]}  Ke5 {[%clk 0:00:22]} 41. Ra5+ {[%clk 0:00:35]}  Kf6 {[%clk 0:00:22]} 42. b4 {[%clk 0:00:33]}  g5 {[%clk 0:00:20]} 43. hxg5+ {[%clk 0:00:33]}  hxg5 {[%clk 0:00:21]} 44. Kd4 {[%clk 0:00:34]}  Rb2 {[%clk 0:00:17]} 45. Ra6+ {[%clk 0:00:31]}  Kf5 {[%clk 0:00:17]} 46. Ra5+ {[%clk 0:00:31]}  Kf6 {[%clk 0:00:15]} 47. Kxe4 {[%clk 0:00:29]}  Rxb4+ {[%clk 0:00:15]} 48. Kf3 {[%clk 0:00:30]}  Rb1 {[%clk 0:00:12]} 49. Ra6+ {[%clk 0:00:28]}  Ke5 {[%clk 0:00:11]} 50. Ra5+ {[%clk 0:00:29]}  Kf6 {[%clk 0:00:11]} 51. a4 {[%clk 0:00:28]}  Rb4 {[%clk 0:00:09]} 52. Ra6+ {[%clk 0:00:27]}  Ke5 {[%clk 0:00:09]} 53. Ra5+ {[%clk 0:00:28]}  Kf6 {[%clk 0:00:09]} 54. e4 {[%clk 0:00:27]}  Rb1 {[%clk 0:00:06]} 55. Rf5+ {[%clk 0:00:25]}  Kg6 {[%clk 0:00:06]} 56. a5 {[%clk 0:00:24]}  Ra1 {[%clk 0:00:03]} 57. Rb5 {[%clk 0:00:24]}  Rf1+ {[%clk 0:00:03]} 58. Kg4 {[%clk 0:00:24]}  Rg1+ {[%clk 0:00:03]} 59. Kf3 {[%clk 0:00:25]}  Rf1+ {[%clk 0:00:03]} 60. Kg3 {[%clk 0:00:25]}  Re1 {[%clk 0:00:03]} 61. Kf3 {[%clk 0:00:23]}  Rf1+ {[%clk 0:00:03]} 1/2-1/2


[Site "https://www.chess.com"]

[Event "Titled Tuesday Blitz August 02 Early 2022"]
[White "Saydaliev, Saidakbar"]
[Black "Zhigalko, Sergei"]
[WhiteFideId "14203693"]
[BlackFideId "13502956"]
[WhiteElo "2265"]
[BlackElo "2662"]
[Result "0-1"]
[Round "05"]
[TimeControl "180+1"]
[Date "2022.08.02"]
[WhiteClock "0:00:04"]
[BlackClock "0:00:07"]

1. e4 {[%clk 0:03:00]}  c5 {[%clk 0:02:59]} 2. Nf3 {[%clk 0:03:00]}  Nc6 {[%clk 0:03:00]} 3. Bb5 {[%clk 0:02:59]}  Nf6 {[%clk 0:03:00]} 4. Nc3 {[%clk 0:02:56]}  Qc7 {[%clk 0:03:00]} 5. a4 {[%clk 0:02:51]}  Nd4 {[%clk 0:02:55]} 6. O-O {[%clk 0:02:46]}  e6 {[%clk 0:02:50]} 7. Re1 {[%clk 0:02:43]}  a6 {[%clk 0:02:48]} 8. Bc4 {[%clk 0:02:33]}  Ng4 {[%clk 0:02:39]} 9. g3 {[%clk 0:02:29]}  Nxf3+ {[%clk 0:02:38]} 10. Qxf3 {[%clk 0:02:29]}  Ne5 {[%clk 0:02:39]} 11. Qe2 {[%clk 0:02:29]}  Be7 {[%clk 0:02:34]} 12. Ba2 {[%clk 0:02:15]}  O-O {[%clk 0:02:24]} 13. d3 {[%clk 0:02:14]}  Nc6 {[%clk 0:02:18]} 14. Qd1 {[%clk 0:01:38]}  Nd4 {[%clk 0:02:17]} 15. Kg2 {[%clk 0:01:35]}  b5 {[%clk 0:02:11]} 16. Ne2 {[%clk 0:01:32]}  Bb7 {[%clk 0:02:03]} 17. c3 {[%clk 0:01:31]}  Nc6 {[%clk 0:01:50]} 18. Be3 {[%clk 0:01:18]}  f5 {[%clk 0:01:37]} 19. f3 {[%clk 0:01:11]}  Ne5 {[%clk 0:01:32]} 20. Nf4 {[%clk 0:00:24]}  fxe4 {[%clk 0:01:11]} 21. fxe4 {[%clk 0:00:23]}  c4 {[%clk 0:01:07]} 22. Bd4 {[%clk 0:00:24]}  g5 {[%clk 0:00:46]} 23. Qh5 {[%clk 0:00:21]}  Bf6 {[%clk 0:00:32]} 24. Nh3 {[%clk 0:00:19]}  Rf7 {[%clk 0:00:12]} 25. Rf1 {[%clk 0:00:13]}  Raf8 {[%clk 0:00:06]} 26. Nxg5 {[%clk 0:00:13]}  Rg7 {[%clk 0:00:07]} 27. Rxf6 {[%clk 0:00:05]}  Rxf6 {[%clk 0:00:08]} 28. Nf3 {[%clk 0:00:06]}  d6 {[%clk 0:00:02]} 29. Nxe5 {[%clk 0:00:06]}  dxe5 {[%clk 0:00:01]} 30. Bxe5 {[%clk 0:00:07]}  Qf7 {[%clk 0:00:02]} 31. Qxf7+ {[%clk 0:00:07]}  Rfxf7 {[%clk 0:00:02]} 32. Bxg7 {[%clk 0:00:07]}  Kxg7 {[%clk 0:00:01]} 33. dxc4 {[%clk 0:00:07]}  Bxe4+ {[%clk 0:00:01]} 34. Kg1 {[%clk 0:00:07]}  bxa4 {[%clk 0:00:02]} 35. Re1 {[%clk 0:00:06]}  Bf5 {[%clk 0:00:02]} 36. c5 {[%clk 0:00:06]}  Rc7 {[%clk 0:00:01]} 37. Bc4 {[%clk 0:00:04]}  Rxc5 {[%clk 0:00:01]} 38. Bxa6 {[%clk 0:00:04]}  a3 {[%clk 0:00:02]} 39. bxa3 {[%clk 0:00:05]}  Rxc3 {[%clk 0:00:02]} 40. Bc8 {[%clk 0:00:05]}  Rxc8 {[%clk 0:00:02]} 41. Ra1 {[%clk 0:00:03]}  h5 {[%clk 0:00:03]} 42. a4 {[%clk 0:00:04]}  Ra8 {[%clk 0:00:03]} 43. a5 {[%clk 0:00:05]}  Ra6 {[%clk 0:00:04]} 44. Kf2 {[%clk 0:00:05]}  Kf6 {[%clk 0:00:04]} 45. Ke3 {[%clk 0:00:06]}  Ke5 {[%clk 0:00:05]} 46. Ra3 {[%clk 0:00:05]}  Be4 {[%clk 0:00:05]} 47. Ra1 {[%clk 0:00:05]}  Bd5 {[%clk 0:00:06]} 48. h3 {[%clk 0:00:06]}  Kf5 {[%clk 0:00:06]} 49. g4+ {[%clk 0:00:05]}  hxg4 {[%clk 0:00:07]} 50. hxg4+ {[%clk 0:00:06]}  Ke5 {[%clk 0:00:07]} 51. g5 {[%clk 0:00:05]}  Kf5 {[%clk 0:00:07]} 52. Kd4 {[%clk 0:00:05]}  Kxg5 {[%clk 0:00:08]} 53. Ke5 {[%clk 0:00:06]}  Kg4 {[%clk 0:00:08]} 54. Ra3 {[%clk 0:00:04]}  Kg5 {[%clk 0:00:04]} 55. Rg3+ {[%clk 0:00:03]}  Kh4 {[%clk 0:00:04]} 56. Ra3 {[%clk 0:00:04]}  Kh5 {[%clk 0:00:05]} 57. Kf6 {[%clk 0:00:03]}  Kg4 {[%clk 0:00:04]} 58. Ke5 {[%clk 0:00:04]}  Bf3 {[%clk 0:00:04]} 59. Ra1 {[%clk 0:00:03]}  Bg2 {[%clk 0:00:04]} 60. Ra3 {[%clk 0:00:04]}  Bf3 {[%clk 0:00:03]} 61. Ra1 {[%clk 0:00:04]}  Kg3 {[%clk 0:00:04]} 62. Ra3 {[%clk 0:00:04]}  Kf2 {[%clk 0:00:04]} 63. Kf4 {[%clk 0:00:02]}  Bd5 {[%clk 0:00:04]} 64. Ke5 {[%clk 0:00:02]}  Ke2 {[%clk 0:00:04]} 65. Kd4 {[%clk 0:00:02]}  Kd2 {[%clk 0:00:04]} 66. Kc5 {[%clk 0:00:03]}  Kc2 {[%clk 0:00:04]} 67. Kb5 {[%clk 0:00:03]}  Ra8 {[%clk 0:00:05]} 68. a6 {[%clk 0:00:03]}  Kb2 {[%clk 0:00:05]} 69. Re3 {[%clk 0:00:04]}  Kc2 {[%clk 0:00:05]} 70. Kb6 {[%clk 0:00:04]}  Kd2 {[%clk 0:00:05]} 71. Rg3 {[%clk 0:00:03]}  Rb8+ {[%clk 0:00:05]} 72. Kc7 {[%clk 0:00:03]}  Rb1 {[%clk 0:00:05]} 73. a7 {[%clk 0:00:04]}  Ra1 {[%clk 0:00:05]} 74. Kb8 {[%clk 0:00:04]}  Ke2 {[%clk 0:00:06]} 75. Rg7 {[%clk 0:00:01]}  Rb1+ {[%clk 0:00:06]} 76. Kc8 {[%clk 0:00:01]}  Ra1 {[%clk 0:00:06]} 77. Rd7 {[%clk 0:00:02]}  Ke3 {[%clk 0:00:06]} 78. Kb8 {[%clk 0:00:02]}  Ke4 {[%clk 0:00:06]} 79. Re7 {[%clk 0:00:02]}  Ke5 {[%clk 0:00:06]} 80. Rd7 {[%clk 0:00:03]}  Kd4 {[%clk 0:00:06]} 81. Rc7 {[%clk 0:00:03]}  e5 {[%clk 0:00:06]} 82. Re7 {[%clk 0:00:04]}  e4 {[%clk 0:00:07]} 0-1


[Site "https://www.chess.com"]

[Event "Titled Tuesday Blitz August 02 Early 2022"]
[White "Seo, Jung Min"]
[Black "Aldokhin, Ivan"]
[WhiteFideId "1734687"]
[BlackFideId "24115720"]
[WhiteElo "2414"]
[BlackElo "2246"]
[Result "1-0"]
[Round "05"]
[TimeControl "180+1"]
[Date "2022.08.02"]
[WhiteClock "0:00:15"]
[BlackClock "0:00:03"]

1. e4 {[%clk 0:03:00]}  c5 {[%clk 0:02:55]} 2. Nf3 {[%clk 0:03:01]}  e6 {[%clk 0:02:54]} 3. c3 {[%clk 0:03:00]}  Nf6 {[%clk 0:02:54]} 4. e5 {[%clk 0:03:00]}  Nd5 {[%clk 0:02:54]} 5. d4 {[%clk 0:03:00]}  cxd4 {[%clk 0:02:54]} 6. cxd4 {[%clk 0:03:01]}  d6 {[%clk 0:02:55]} 7. Bd3 {[%clk 0:03:00]}  Nc6 {[%clk 0:02:54]} 8. O-O {[%clk 0:03:00]}  Be7 {[%clk 0:02:53]} 9. a3 {[%clk 0:02:53]}  O-O {[%clk 0:02:53]} 10. Qe2 {[%clk 0:02:53]}  Bd7 {[%clk 0:02:48]} 11. Qe4 {[%clk 0:02:52]}  f5 {[%clk 0:02:30]} 12. exf6 {[%clk 0:02:52]}  Nxf6 {[%clk 0:02:30]} 13. Qe2 {[%clk 0:02:52]}  d5 {[%clk 0:02:05]} 14. Nc3 {[%clk 0:02:42]}  Bd6 {[%clk 0:02:01]} 15. Be3 {[%clk 0:02:35]}  Qe8 {[%clk 0:01:53]} 16. Rae1 {[%clk 0:02:25]}  Qh5 {[%clk 0:01:51]} 17. h3 {[%clk 0:02:25]}  Rae8 {[%clk 0:01:42]} 18. Ng5 {[%clk 0:02:04]}  Qxe2 {[%clk 0:01:39]} 19. Bxe2 {[%clk 0:02:03]}  e5 {[%clk 0:01:11]} 20. dxe5 {[%clk 0:02:02]}  Bxe5 {[%clk 0:01:11]} 21. Bc5 {[%clk 0:01:57]}  h6 {[%clk 0:00:32]} 22. Nf3 {[%clk 0:01:21]}  Rf7 {[%clk 0:00:30]} 23. Nxe5 {[%clk 0:01:18]}  Rxe5 {[%clk 0:00:28]} 24. Bd1 {[%clk 0:00:58]}  Ne4 {[%clk 0:00:15]} 25. Nxe4 {[%clk 0:00:48]}  dxe4 {[%clk 0:00:15]} 26. Be3 {[%clk 0:00:48]}  Be6 {[%clk 0:00:15]} 27. Be2 {[%clk 0:00:47]}  Rd7 {[%clk 0:00:13]} 28. Rc1 {[%clk 0:00:44]}  Nd4 {[%clk 0:00:11]} 29. Bd1 {[%clk 0:00:41]}  Nc6 {[%clk 0:00:08]} 30. Re1 {[%clk 0:00:39]}  Kf7 {[%clk 0:00:07]} 31. Bf4 {[%clk 0:00:38]}  Rf5 {[%clk 0:00:04]} 32. Rxe4 {[%clk 0:00:30]}  Bd5 {[%clk 0:00:04]} 33. Ra4 {[%clk 0:00:30]}  b5 {[%clk 0:00:04]} 34. Bg4 {[%clk 0:00:28]}  Be6 {[%clk 0:00:01]} 35. Bxf5 {[%clk 0:00:27]}  Bxf5 {[%clk 0:00:02]} 36. Ra6 {[%clk 0:00:25]}  Nd4 {[%clk 0:00:03]} 37. Re1 {[%clk 0:00:24]}  Bd3 {[%clk 0:00:03]} 38. Be3 {[%clk 0:00:20]}  Nc2 {[%clk 0:00:03]} 39. Rd1 {[%clk 0:00:19]}  b4 {[%clk 0:00:03]} 40. axb4 {[%clk 0:00:17]}  Nxb4 {[%clk 0:00:01]} 41. Rxa7 {[%clk 0:00:17]}  Nc6 {[%clk 0:00:01]} 42. Rxd7+ {[%clk 0:00:16]}  Ke6 {[%clk 0:00:02]} 43. R7xd3 {[%clk 0:00:15]}  Ne5 {[%clk 0:00:03]} 44. Rd6+ {[%clk 0:00:15]}  Kf5 {[%clk 0:00:03]} 45. R1d5 {[%clk 0:00:15]}  g5 {[%clk 0:00:03]} 46. Rxe5+ {[%clk 0:00:14]}  Kxe5 {[%clk 0:00:03]} 47. Rxh6 {[%clk 0:00:15]}  Ke4 {[%clk 0:00:04]} 48. Bxg5 {[%clk 0:00:15]}  Kf5 {[%clk 0:00:03]} 49. h4 {[%clk 0:00:15]} 1-0


[Site "https://www.chess.com"]

[Event "Titled Tuesday Blitz August 02 Early 2022"]
[White "Sevian, Samuel"]
[Black "Kosteniuk, Alexandra"]
[WhiteFideId "2040506"]
[BlackFideId "4128125"]
[WhiteElo "2692"]
[BlackElo "2469"]
[Result "1-0"]
[Round "05"]
[TimeControl "180+1"]
[Date "2022.08.02"]
[WhiteClock "0:00:07"]
[BlackClock "0:00:11"]

1. c4 {[%clk 0:03:00]}  e5 {[%clk 0:02:58]} 2. Nc3 {[%clk 0:03:00]}  Nf6 {[%clk 0:02:59]} 3. Nf3 {[%clk 0:03:00]}  Nc6 {[%clk 0:02:59]} 4. g3 {[%clk 0:03:00]}  d5 {[%clk 0:02:58]} 5. cxd5 {[%clk 0:03:00]}  Nxd5 {[%clk 0:02:59]} 6. Bg2 {[%clk 0:03:01]}  Nb6 {[%clk 0:02:59]} 7. O-O {[%clk 0:03:01]}  Be7 {[%clk 0:03:00]} 8. a3 {[%clk 0:03:01]}  O-O {[%clk 0:02:58]} 9. b4 {[%clk 0:03:02]}  Be6 {[%clk 0:02:58]} 10. Rb1 {[%clk 0:03:01]}  f6 {[%clk 0:02:56]} 11. d3 {[%clk 0:03:01]}  Nd4 {[%clk 0:02:54]} 12. Nd2 {[%clk 0:02:45]}  c6 {[%clk 0:02:51]} 13. e3 {[%clk 0:02:46]}  Nf5 {[%clk 0:02:51]} 14. Qc2 {[%clk 0:02:46]}  Qe8 {[%clk 0:02:49]} 15. Nde4 {[%clk 0:02:44]}  Rd8 {[%clk 0:02:38]} 16. Nc5 {[%clk 0:02:43]}  Bc8 {[%clk 0:02:35]} 17. N3e4 {[%clk 0:02:43]}  Qf7 {[%clk 0:02:31]} 18. Bb2 {[%clk 0:02:37]}  Nd6 {[%clk 0:02:27]} 19. Nd2 {[%clk 0:02:32]}  h5 {[%clk 0:02:23]} 20. d4 {[%clk 0:02:31]}  exd4 {[%clk 0:02:21]} 21. Bxd4 {[%clk 0:02:32]}  h4 {[%clk 0:02:20]} 22. Ba1 {[%clk 0:02:17]}  h3 {[%clk 0:02:13]} 23. Bh1 {[%clk 0:02:17]}  Ndc4 {[%clk 0:02:11]} 24. Nxc4 {[%clk 0:02:15]}  Nxc4 {[%clk 0:02:11]} 25. Rbc1 {[%clk 0:01:33]}  Nxa3 {[%clk 0:02:01]} 26. Qe4 {[%clk 0:01:32]}  Nb5 {[%clk 0:01:51]} 27. Qh4 {[%clk 0:01:32]}  Nd6 {[%clk 0:01:47]} 28. e4 {[%clk 0:01:26]}  Nc4 {[%clk 0:01:41]} 29. g4 {[%clk 0:01:12]}  Ne5 {[%clk 0:01:34]} 30. Qxh3 {[%clk 0:01:10]}  Bxg4 {[%clk 0:01:27]} 31. Qg3 {[%clk 0:01:09]}  Qh5 {[%clk 0:01:24]} 32. f4 {[%clk 0:01:06]}  Bxc5+ {[%clk 0:01:17]} 33. Rxc5 {[%clk 0:01:05]}  b6 {[%clk 0:01:15]} 34. Rc3 {[%clk 0:01:02]}  Ng6 {[%clk 0:01:06]} 35. Rxc6 {[%clk 0:01:01]}  Bh3 {[%clk 0:01:04]} 36. Bf3 {[%clk 0:00:59]}  Qh6 {[%clk 0:01:00]} 37. Re1 {[%clk 0:00:41]}  Nxf4 {[%clk 0:01:00]} 38. Rc3 {[%clk 0:00:40]}  Nd3 {[%clk 0:00:56]} 39. Re2 {[%clk 0:00:36]}  Ne5 {[%clk 0:00:56]} 40. Re1 {[%clk 0:00:34]}  Rd2 {[%clk 0:00:52]} 41. Be2 {[%clk 0:00:30]}  Rfd8 {[%clk 0:00:49]} 42. Qxh3 {[%clk 0:00:29]}  Rxe2 {[%clk 0:00:44]} 43. Rxe2 {[%clk 0:00:26]}  Rd1+ {[%clk 0:00:42]} 44. Kg2 {[%clk 0:00:24]}  Qxh3+ {[%clk 0:00:40]} 45. Kxh3 {[%clk 0:00:22]}  Rxa1 {[%clk 0:00:41]} 46. Rg2 {[%clk 0:00:19]}  g5 {[%clk 0:00:35]} 47. Rc7 {[%clk 0:00:18]}  a5 {[%clk 0:00:32]} 48. Rd2 {[%clk 0:00:16]}  Ra3+ {[%clk 0:00:32]} 49. Kg2 {[%clk 0:00:15]}  Nd3 {[%clk 0:00:29]} 50. bxa5 {[%clk 0:00:15]}  bxa5 {[%clk 0:00:29]} 51. Kf3 {[%clk 0:00:10]}  Nc5+ {[%clk 0:00:27]} 52. Kg4 {[%clk 0:00:07]}  Rd3 {[%clk 0:00:22]} 53. Rxd3 {[%clk 0:00:06]}  Nxd3 {[%clk 0:00:23]} 54. Kf5 {[%clk 0:00:06]}  Nf2 {[%clk 0:00:22]} 55. Ra7 {[%clk 0:00:06]}  Kf8 {[%clk 0:00:20]} 56. Rxa5 {[%clk 0:00:06]}  Kg7 {[%clk 0:00:20]} 57. Ra7+ {[%clk 0:00:07]}  Kh6 {[%clk 0:00:21]} 58. Re7 {[%clk 0:00:07]}  g4 {[%clk 0:00:11]} 59. Kxf6 {[%clk 0:00:07]} 1-0


[Site "https://www.chess.com"]